[Event "34th MPL National U12 Chess-ch 2022"]
[Site "Mysore"]
[Date "2022.04.14"]
[Round "11.6"]
[White "Nimay Agrawal"]
[Black "Sathvik Adiga"]
[Result "1/2-1/2"]
[ECO "A48"]
[WhiteElo "1366"]
[BlackElo "1562"]
[Annotator "NA RC"]
[PlyCount "139"]
[EventDate "2022.04.09"]
[EventCountry "IND"]
[SourceTitle "playchess.com"]
[Source "ChessBase"]
[SourceQuality "1"]
[TimeControl "5400+30"]

1. d4 {[%emt 0:00:06]} Nf6 {[%emt 0:00:02]} 2. Bf4 {[%emt 0:00:10]} g6 {[%emt 0:00:03]} 3. e3 {[%emt 0:00:13]} Bg7 {[%emt 0:00:03]} 4. Nf3 {[%emt 0:00:14]} d6 {[%emt 0:00:03]} 5. h3 {[%emt 0:00:10]} O-O {[%emt 0:00:06]} 6. Be2 {[%emt 0:00:15]} c5 {[%emt 0:00:08]} 7. c3 {[%emt 0:00:19]} b6 {[%emt 0:01:45]} 8. O-O {[%emt 0:00:44]} Bb7 {[%emt 0:00:11]} 9. Nbd2 {[%emt 0:00:31]} Nbd7 {[%emt 0:02:20]} 10. Bh2 {[%emt 0:01:32]} a6 {[%emt 0:00:05]} 11. a4 {[%emt 0:01:12]} Ra7 {[%emt 0:00:09]} 12. Qb3 {[%emt 0:05:59]} Qa8 {[%emt 0:00:38]} 13. Ne1 {[%emt 0:05:11]} Bh6 {[%emt 0:07:33]} 14. Bf3 {[%emt 0:04:26]} Ne4 {[%emt 0:01:16]} 15. Nxe4 {[%emt 0:03:19]} Bxe4 {[%emt 0:00:20]} 16. Bxe4 {[%emt 0:00:06]} Qxe4 {[%emt 0:00:08]} 17. Qc2 {[%emt 0:05:02]} Nf6 {[%emt 0:05:39]} 18. Ra3 {[%emt 0:04:38]} Rc8 {[%emt 0:03:19]} 19. Rb3 {[%emt 0:05:29]} Qc6 {[%emt 0:03:12]} 20. Nf3 {[%emt 0:01:33]} Qxa4 {[%emt 0:01:39]} 21. Rc1 {[%emt 0:01:38]} Qc6 {[%emt 0:01:36]} 22. Ra1 {[%emt 0:02:08]} Nd7 {[%emt 0:20:03]} 23. e4 {[%emt 0:05:03]} cxd4 {[%emt 0:03:26]} 24. Nxd4 {[%emt 0:00:11]} Qb7 {[%emt 0:04:09]} 25. Rba3 {[%emt 0:01:52]} Bg7 {[%emt 0:02:44]} 26. Qe2 {[%emt 0:03:43]} Nc5 {[%emt 0:09:18]} 27. f3 {[%emt 0:03:08]} Raa8 {[%emt 0:01:05]} 28. Nc2 {[%emt 0:03:57]} b5 {[%emt 0:08:15]} 29. Nb4 {[%emt 0:02:55]} Na4 {[%emt 0:00:47]} 30. Bg3 {[%emt 0:03:56]} a5 {[%emt 0:09:09]} 31. Nd5 {[%emt 0:01:04]} e6 {[%emt 0:02:51]} 32. Ne3 {[%emt 0:01:44]} Nxb2 {[%emt 0:01:01]} 33. Rxa5 {[%emt 0:08:47]} Bxc3 {[%emt 0:02:46]} 34. Rxa8 {[%emt 0:01:20]} Rxa8 {[%emt 0:00:01]} 35. Rxa8+ {[%emt 0:00:13]} Qxa8 {[%emt 0:00:01]} 36. Qxb5 {[%emt 0:00:27]} Bd4 {[%emt 0:00:26]} 37. Kh2 {[%emt 0:01:20]} Bxe3 {[%emt 0:01:22]} 38. Qxb2 {[%emt 0:00:05]} d5 {[%emt 0:00:07]} 39. Qf6 {[%emt 0:01:19]} Qa5 {[%emt 0:08:19]} 40. Be5 {[%emt 0:00:28]} Kf8 {[%emt 0:00:05]} 41. Bd6+ {[%emt 0:00:27]} Kg8 {[%emt 0:00:05]} 42. Qe7 {[%emt 0:01:47]} Qa8 {[%emt 0:01:29]} 43. Be5 {[%emt 0:02:25]} g5 {[%emt 0:00:30]} 44. Qf6 {[%emt 0:02:37]} Bf4+ {[%emt 0:00:03]} 45. Bxf4 {[%emt 0:00:04]} gxf4 {[%emt 0:00:09]} 46. Qxf4 {[%emt 0:00:04]} Qd8 {[%emt 0:01:34]} 47. exd5 {[%emt 0:00:53]} exd5 {[%emt 0:00:01]} 48. Qg4+ {[%emt 0:00:07]} Kf8 {[%emt 0:00:10]} 49. Qb4+ {[%emt 0:00:04]} Kg7 {[%emt 0:01:48]} 50. Qg4+ {[%emt 0:00:14]} Kh8 {[%emt 0:00:03]} 51. Qd4+ {[%emt 0:00:05]} f6 {[%emt 0:00:04]} 52. Kg3 {[%emt 0:00:49]} Kg7 {[%emt 0:00:11]} 53. Qg4+ {[%emt 0:00:15]} Kf8 {[%emt 0:00:15]} 54. Qb4+ {[%emt 0:00:07]} Kf7 {[%emt 0:00:19]} 55. Qd4 {[%emt 0:00:55]} Qd6+ {[%emt 0:00:39]} 56. f4 {[%emt 0:00:30]} h5 {[%emt 0:00:43]} 57. Kh4 {[%emt 0:01:03]} Kg6 {[%emt 0:00:38]} 58. g4 {[%emt 0:00:59]} hxg4 {[%emt 0:00:29]} 59. hxg4 {[%emt 0:00:04]} f5 {[%emt 0:00:22]} 60. gxf5+ {[%emt 0:00:43]} Kxf5 {[%emt 0:00:04]} 61. Qd3+ {[%emt 0:00:22]} Kf6 {[%emt 0:00:08]} 62. Qd4+ {[%emt 0:00:06]} Ke6 {[%emt 0:00:05]} 63. Kg4 {[%emt 0:00:15]} Kf7 {[%emt 0:01:53]} 64. f5 {[%emt 0:00:36]} Qc6 {[%emt 0:00:42]} 65. Kg5 {[%emt 0:00:30]} Qc1+ {[%emt 0:00:05]} 66. Kg4 {[%emt 0:00:21]} Qh1 {[%emt 0:00:19]} 67. Qa7+ {[%emt 0:00:10]} Kf8 {[%emt 0:00:12]} 68. Qb8+ {[%emt 0:00:05]} Kf7 {[%emt 0:00:12]} 69. Qc7+ {[%emt 0:00:05]} Kf6 {[%emt 0:00:16]} 70. Qd6+ {[%emt 0:22:21]} 1/2-1/2